[Event "Paul Keres Memorial Festival 2022"]
[Site "Pärnu, Estonia Resort Hotel & Spa"]
[Date "2022.07.20"]
[Round "5.2"]
[White "Smirnov, Artem"]
[Black "Sulskis, Sarunas"]
[Result "1/2-1/2"]
[TimeControl "60 min for 30 moves + 30 min until game end, from first move every move 30 sec time increment"]
[WhiteTitle "IM"]
[BlackTitle "GM"]
[WhiteFideId "4143256"]
[BlackFideId "12800112"]
[WhiteElo "2419"]
[BlackElo "2481"]

1. d4 {[%clk 01:00:57]} Nf6 {[%clk 01:00:47]} 2. c4 {[%clk 01:01:21]} e6 {[%clk
01:01:06]} 3. Nc3 {[%clk 01:01:45]} Bb4 {[%clk 01:01:26]} 4. e3 {[%clk
01:02:09]} O-O {[%clk 01:00:08]} {[%emt 00:01:11]} 5. Bd3 {[%clk 01:02:32]}
{[%emt 00:00:07]} c5 {[%clk 00:58:52]} {[%emt 00:01:47]} 6. Nge2 {[%clk
01:02:16]} {[%emt 00:00:46]} d5 {[%clk 00:57:04]} {[%emt 00:02:18]} 7. cxd5
{[%clk 01:01:14]} {[%emt 00:01:32]} cxd4 {[%clk 00:56:11]} {[%emt 00:01:23]} 8.
exd4 {[%clk 01:01:36]} {[%emt 00:00:07]} Nxd5 {[%clk 00:55:46]} {[%emt
00:00:55]} 9. O-O {[%clk 01:01:50]} {[%emt 00:00:15]} Nc6 {[%clk 00:54:58]}
{[%emt 00:01:18]} 10. Nxd5 {[%clk 00:46:11]} {[%emt 00:16:10]} exd5 {[%clk
00:43:47]} {[%emt 00:11:40]} 11. Nf4 {[%clk 00:44:55]} {[%emt 00:01:45]} Bd6
{[%clk 00:38:57]} {[%emt 00:05:21]} 12. Re1 {[%clk 00:29:48]} {[%emt 00:15:37]}
Bxf4 {[%clk 00:31:21]} {[%emt 00:08:06]} 13. Bxf4 {[%clk 00:30:10]} {[%emt
00:00:08]} Qf6 {[%clk 00:31:41]} {[%emt 00:00:10]} 14. Qh5 {[%clk 00:21:39]}
{[%emt 00:09:01]} h6 {[%clk 00:30:49]} {[%emt 00:01:22]} 15. Be5 {[%clk
00:19:47]} {[%emt 00:02:23]} Nxe5 {[%clk 00:26:11]} {[%emt 00:05:08]} 16. Qxe5
{[%clk 00:18:32]} {[%emt 00:01:45]} Qxe5 {[%clk 00:24:42]} {[%emt 00:02:00]} 17.
Rxe5 {[%clk 00:18:39]} {[%emt 00:00:23]} Be6 {[%clk 00:23:42]} {[%emt
00:01:29]} 18. f4 {[%clk 00:18:34]} {[%emt 00:00:35]} Rfd8 {[%clk 00:21:21]}
{[%emt 00:02:50]} 19. Rd1 {[%clk 00:14:02]} {[%emt 00:05:03]} Rd6 {[%clk
00:17:35]} {[%emt 00:04:16]} 20. Rc1 {[%clk 00:11:04]} {[%emt 00:03:28]} Rc6
{[%clk 00:11:49]} {[%emt 00:06:15]} 21. Rc5 {[%clk 00:09:00]} {[%emt 00:02:34]}
Rxc5 {[%clk 00:06:03]} {[%emt 00:06:17]} 22. dxc5 {[%clk 00:09:22]} {[%emt
00:00:08]} Rd8 {[%clk 00:05:45]} {[%emt 00:00:47]} 23. f5 {[%clk 00:03:38]}
{[%emt 00:06:15]} Bc8 {[%clk 00:06:05]} {[%emt 00:00:09]} 24. b4 {[%clk
00:03:18]} {[%emt 00:00:50]} Kf8 {[%clk 00:05:14]} {[%emt 00:01:21]} 25. Kf2
{[%clk 00:03:37]} {[%emt 00:00:11]} f6 {[%clk 00:03:29]} {[%emt 00:02:15]} 26.
Re1 {[%clk 00:03:53]} {[%emt 00:00:14]} d4 {[%clk 00:03:13]} {[%emt 00:00:47]}
27. g4 {[%clk 00:01:22]} {[%emt 00:03:01]} Bd7 {[%clk 00:02:47]} {[%emt
00:00:55]} 28. b5 {[%clk 00:00:37]} {[%emt 00:01:16]} a6 {[%clk 00:02:35]}
{[%emt 00:00:42]} 29. a4 {[%clk 00:00:34]} {[%emt 00:00:33]} axb5 {[%clk
00:02:23]} {[%emt 00:00:42]} 30. axb5 {[%clk 00:30:54]} {[%emt 00:00:10]} Ra8
{[%clk 00:32:15]} {[%emt 00:00:38]} 31. Rb1 {[%clk 00:24:15]} {[%emt 00:07:09]}
Ke7 {[%clk 00:28:50]} {[%emt 00:03:55]} 32. Kf3 {[%clk 00:06:52]} {[%emt
00:17:53]} Ra4 {[%clk 00:27:33]} {[%emt 00:01:47]} 33. Be4 {[%clk 00:01:10]}
{[%emt 00:06:12]} Ra5 {[%clk 00:25:30]} {[%emt 00:02:32]} 34. b6 {[%clk
00:00:42]} {[%emt 00:00:59]} Rxc5 {[%clk 00:21:37]} {[%emt 00:04:22]} 35. Bxb7
{[%clk 00:01:10]} {[%emt 00:00:02]} Rb5 {[%clk 00:19:51]} {[%emt 00:02:16]} 36.
Rxb5 {[%clk 00:00:44]} {[%emt 00:00:56]} Bxb5 {[%clk 00:20:12]} {[%emt
00:00:08]} 37. Ke4 {[%clk 00:00:45]} {[%emt 00:00:29]} Kd6 {[%clk 00:17:09]}
{[%emt 00:03:33]} 38. Kxd4 {[%clk 00:00:50]} {[%emt 00:00:25]} Be2 {[%clk
00:17:33]} {[%emt 00:00:06]} 39. h3 {[%clk 00:00:37]} {[%emt 00:00:43]} Bf1
{[%clk 00:17:41]} {[%emt 00:00:22]} 40. h4 {[%clk 00:00:35]} {[%emt 00:00:33]}
Be2 {[%clk 00:17:57]} {[%emt 00:00:13]} 41. Be4 {[%clk 00:00:35]} {[%emt
00:00:30]} Bxg4 {[%clk 00:18:05]} {[%emt 00:00:22]} 42. b7 {[%clk 00:00:35]}
{[%emt 00:00:30]} Kc7 {[%clk 00:18:30]} {[%emt 00:00:05]} 43. Kd5 {[%clk
00:00:37]} {[%emt 00:00:29]} Kxb7 {[%clk 00:16:53]} {[%emt 00:02:07]} 44. Ke6+
{[%clk 00:00:48]} {[%emt 00:00:19]} Kc7 {[%clk 00:17:02]} {[%emt 00:00:20]} 45.
Bc2 {[%clk 00:00:32]} {[%emt 00:00:47]} h5 {[%clk 00:14:26]} {[%emt 00:03:07]}
46. Kf7 {[%clk 00:00:40]} {[%emt 00:00:22]} Bxf5 {[%clk 00:13:48]} {[%emt
00:01:08]} 47. Bxf5 {[%clk 00:01:02]} {[%emt 00:00:07]} g5 {[%clk 00:14:05]}
{[%emt 00:00:12]} 48. Kxf6 {[%clk 00:01:11]} {[%emt 00:00:22]} gxh4 {[%clk
00:14:29]} {[%emt 00:00:06]} 49. Kg5 {[%clk 00:01:36]} {[%emt 00:00:04]} h3
{[%clk 00:14:52]} {[%emt 00:00:06]} 1/2-1/2

[Event "Paul Keres Memorial Festival 2022"]
[Site "Pärnu, Estonia Resort Hotel & Spa"]
[Date "2022.07.20"]
[Round "5.3"]
[White "Andrijashkin, Deniss"]
[Black "Olde, Margareth"]
[Result "0-1"]
[TimeControl "60 min for 30 moves + 30 min until game end, from first move every move 30 sec time increment"]
[BlackTitle "WIM"]
[WhiteFideId "4504631"]
[BlackFideId "4503082"]
[WhiteElo "2006"]
[BlackElo "2235"]

1. e4 {[%clk 00:56:39]} {[%emt 00:02:43]} e5 {[%clk 01:00:09]} {[%emt
00:00:52]} 2. Nc3 {[%clk 00:56:56]} {[%emt 00:00:13]} Nf6 {[%clk 01:00:23]}
{[%emt 00:00:16]} 3. g3 {[%clk 00:57:17]} {[%emt 00:00:09]} d5 {[%clk
01:00:48]} {[%emt 00:00:05]} 4. exd5 {[%clk 00:57:41]} {[%emt 00:00:06]} Nxd5
{[%clk 01:01:14]} {[%emt 00:00:04]} 5. Bg2 {[%clk 00:58:06]} {[%emt 00:00:05]}
Nxc3 {[%clk 01:01:31]} {[%emt 00:00:13]} 6. bxc3 {[%clk 00:58:31]} {[%emt
00:00:04]} Bd6 {[%clk 01:01:12]} {[%emt 00:00:48]} 7. Ne2 {[%clk 00:53:31]}
{[%emt 00:05:29]} O-O {[%clk 01:00:01]} {[%emt 00:01:42]} 8. O-O {[%clk
00:52:08]} {[%emt 00:01:54]} Nc6 {[%clk 00:59:58]} {[%emt 00:00:33]} 9. d3
{[%clk 00:50:04]} {[%emt 00:02:33]} Bg4 {[%clk 00:57:18]} {[%emt 00:03:10]} 10.
h3 {[%clk 00:39:04]} {[%emt 00:11:30]} Bh5 {[%clk 00:57:24]} {[%emt 00:00:23]}
11. g4 {[%emt 00:03:53]} Bg6 {[%clk 00:57:48]} {[%emt 00:00:03]} 12. f4 {[%clk
00:36:12]} {[%emt 00:00:03]} exf4 {[%clk 00:56:41]} {[%emt 00:01:37]} 13. Nxf4
{[%clk 00:34:33]} {[%emt 00:02:08]} Rb8 {[%clk 00:45:52]} {[%emt 00:11:20]} 14.
Be3 {[%clk 00:32:55]} {[%emt 00:02:07]} a5 {[%clk 00:38:24]} {[%emt 00:07:59]}
15. Qd2 {[%clk 00:31:15]} {[%emt 00:02:09]} Ne5 {[%clk 00:38:32]} {[%emt
00:00:23]} 16. Rab1 {[%clk 00:26:44]} {[%emt 00:05:01]} c6 {[%clk 00:35:32]}
{[%emt 00:03:31]} 17. c4 {[%clk 00:18:13]} {[%emt 00:08:58]} Re8 {[%clk
00:30:41]} {[%emt 00:05:24]} 18. Qf2 {[%clk 00:11:56]} {[%emt 00:06:46]} Qd7
{[%clk 00:25:42]} {[%emt 00:05:30]} 19. c5 {[%clk 00:10:42]} {[%emt 00:01:44]}
Bc7 {[%clk 00:23:29]} {[%emt 00:02:44]} 20. Bd2 {[%clk 00:08:13]} {[%emt
00:02:55]} f6 {[%clk 00:21:11]} {[%emt 00:02:51]} 21. Nxg6 {[%clk 00:06:05]}
{[%emt 00:02:37]} Nxg6 {[%clk 00:21:24]} {[%emt 00:00:17]} 22. Be4 {[%clk
00:05:13]} {[%emt 00:01:17]} Qe6 {[%clk 00:16:42]} {[%emt 00:05:17]} 23. a4
{[%clk 00:02:27]} {[%emt 00:03:17]} Qa2 {[%clk 00:09:59]} {[%emt 00:07:13]} 24.
Be3 {[%clk 00:01:40]} {[%emt 00:01:16]} Be5 {[%clk 00:09:26]} {[%emt 00:01:04]}
25. h4 {[%clk 00:01:30]} {[%emt 00:00:40]} Qe6 {[%clk 00:06:25]} {[%emt
00:03:31]} 26. Bf5 {[%clk 00:01:26]} {[%emt 00:00:32]} Bh2+ {[%clk 00:05:46]}
{[%emt 00:01:11]} 27. Kxh2 {[%clk 00:01:30]} {[%emt 00:00:26]} Qxe3 {[%clk
00:06:12]} {[%emt 00:00:05]} 28. Bxg6 {[%clk 00:00:33]} {[%emt 00:01:27]} Qe5+
{[%clk 00:04:22]} {[%emt 00:02:20]} 29. Qg3 {[%clk 00:00:32]} {[%emt 00:00:29]}
hxg6 {[%clk 00:04:37]} {[%emt 00:00:16]} 30. Rfe1 {[%clk 00:30:31]} {[%emt
00:00:32]} Qxc5 {[%clk 00:34:13]} {[%emt 00:00:54]} 31. Rxb7 {[%clk 00:28:54]}
{[%emt 00:02:07]} Qxc2+ {[%clk 00:30:55]} {[%emt 00:03:49]} 32. Kh3 {[%clk
00:28:29]} {[%emt 00:00:52]} Rbd8 {[%clk 00:28:46]} {[%emt 00:02:41]} 33. Rd7
{[%clk 00:16:41]} {[%emt 00:12:19]} Rxd7 {[%clk 00:28:10]} {[%emt 00:01:06]} 34.
Rxe8+ {[%clk 00:17:09]} {[%emt 00:00:02]} Kf7 {[%clk 00:27:44]} {[%emt
00:00:55]} 35. Re3 {[%clk 00:17:13]} {[%emt 00:00:27]} Qc5 {[%clk 00:13:16]}
{[%emt 00:14:56]} 36. Qf4 {[%clk 00:05:59]} {[%emt 00:11:39]} Qd4 {[%clk
00:13:19]} {[%emt 00:00:31]} 37. Qg3 {[%clk 00:05:56]} {[%emt 00:00:33]} Qd6
{[%clk 00:13:44]} {[%emt 00:00:07]} 38. Qf3 {[%clk 00:05:02]} {[%emt 00:01:15]}
Qd5 {[%clk 00:12:58]} {[%emt 00:01:25]} 39. Qf4 {[%clk 00:05:15]} {[%emt
00:00:14]} Rb7 {[%clk 00:12:14]} {[%emt 00:01:15]} 40. Kg3 {[%clk 00:00:48]}
{[%emt 00:05:00]} Kg8 {[%clk 00:12:09]} {[%emt 00:00:35]} 41. Qe4 {[%clk
00:00:34]} {[%emt 00:00:44]} Qxe4 {[%clk 00:06:46]} {[%emt 00:05:53]} 42. Rxe4
{[%clk 00:00:58]} {[%emt 00:00:06]} Rd7 {[%clk 00:06:41]} {[%emt 00:00:34]} 43.
d4 {[%clk 00:00:54]} {[%emt 00:00:34]} Kf7 {[%clk 00:07:08]} {[%emt 00:00:03]}
44. Kf3 {[%clk 00:00:33]} {[%emt 00:00:51]} Rb7 {[%clk 00:07:33]} {[%emt
00:00:05]} 45. Re3 {[%clk 00:00:44]} {[%emt 00:00:18]} Rb4 {[%clk 00:07:56]}
{[%emt 00:00:07]} 46. Ke4 {[%clk 00:00:31]} {[%emt 00:00:41]} c5 {[%clk
00:08:14]} {[%emt 00:00:14]} 47. Kd5 {[%clk 00:00:42]} {[%emt 00:00:19]} Rxd4+
{[%clk 00:08:25]} {[%emt 00:00:20]} 48. Kxc5 {[%clk 00:01:08]} {[%emt
00:00:04]} Rxa4 {[%clk 00:08:48]} {[%emt 00:00:07]} 49. Rg3 {[%clk 00:01:21]}
{[%emt 00:00:16]} f5 {[%clk 00:07:51]} {[%emt 00:01:27]} 50. gxf5 {[%clk
00:01:43]} {[%emt 00:00:08]} gxf5 {[%clk 00:08:15]} {[%emt 00:00:07]} 51. h5
{[%clk 00:00:54]} {[%emt 00:01:18]} Rg4 {[%clk 00:07:25]} {[%emt 00:01:20]} 52.
Rh3 {[%clk 00:00:33]} {[%emt 00:00:51]} Ke6 {[%clk 00:05:58]} {[%emt 00:01:56]}
53. h6 {[%clk 00:00:40]} {[%emt 00:00:25]} gxh6 {[%clk 00:06:23]} {[%emt
00:00:04]} 54. Rxh6+ {[%clk 00:01:04]} {[%emt 00:00:05]} Ke5 {[%clk 00:06:47]}
{[%emt 00:00:05]} 55. Rh8 {[%clk 00:00:49]} {[%emt 00:00:46]} Ra4 {[%clk
00:07:07]} {[%emt 00:00:10]} 56. Re8 {[%clk 00:00:36]} {[%emt 00:00:44]} Kf4
{[%clk 00:07:31]} {[%emt 00:00:05]} 57. Kd5 {[%clk 00:00:31]} {[%emt 00:00:36]}
Ra1 {[%clk 00:07:34]} {[%emt 00:00:27]} 58. Ra8 {[%clk 00:00:44]} {[%emt
00:00:17]} a4 {[%clk 00:07:32]} {[%emt 00:00:32]} 59. Ke6 {[%clk 00:01:05]}
{[%emt 00:00:08]} Ke4 {[%clk 00:07:32]} {[%emt 00:00:29]} 60. Kf6 {[%clk
00:01:28]} {[%emt 00:00:08]} f4 {[%clk 00:07:52]} {[%emt 00:00:11]} 61. Kg5
{[%clk 00:01:34]} {[%emt 00:00:24]} f3 {[%clk 00:06:00]} {[%emt 00:02:35]} 62.
Re8+ {[%clk 00:01:59]} {[%emt 00:00:05]} Kd3 {[%clk 00:06:21]} {[%emt
00:00:07]} 63. Rd8+ {[%clk 00:02:18]} {[%emt 00:00:13]} Ke2 {[%clk 00:06:33]}
{[%emt 00:00:17]} 64. Re8+ {[%clk 00:02:38]} {[%emt 00:00:11]} Kf1 {[%clk
00:06:37]} {[%emt 00:00:25]} 65. Kf4 {[%clk 00:02:46]} {[%emt 00:00:22]} f2
{[%clk 00:06:44]} {[%emt 00:00:23]} 66. Kg3 {[%emt 00:02:39]} Ra3+ {[%clk
00:07:07]} {[%emt 00:00:06]} 67. Kh2 {[%clk 00:01:01]} {[%emt 00:00:07]} Rd3
{[%clk 00:07:14]} {[%emt 00:00:22]} 0-1

[Event "Paul Keres Memorial Festival 2022"]
[Site "Pärnu, Estonia Resort Hotel & Spa"]
[Date "2022.07.20"]
[Round "5.4"]
[White "Chukavin, Kirill"]
[Black "Hannson, Markus"]
[Result "1/2-1/2"]
[TimeControl "60 min for 30 moves + 30 min until game end, from first move every move 30 sec time increment"]
[WhiteTitle "FM"]
[WhiteFideId "4503023"]
[BlackFideId "4505620"]
[WhiteElo "2418"]
[BlackElo "1745"]

1. e4 {[%clk 00:52:33]} {[%emt 00:06:51]} e6 {[%clk 01:00:50]} {[%emt
00:00:11]} 2. d4 {[%clk 00:52:53]} {[%emt 00:00:10]} d5 {[%clk 01:01:14]}
{[%emt 00:00:05]} 3. Bd3 {[%clk 00:53:04]} {[%emt 00:00:19]} c5 {[%clk
01:00:52]} {[%emt 00:00:52]} 4. exd5 {[%clk 00:52:41]} {[%emt 00:00:53]} exd5
{[%clk 01:01:16]} {[%emt 00:00:06]} 5. Nf3 {[%clk 00:49:35]} {[%emt 00:03:36]}
c4 {[%clk 00:58:05]} {[%emt 00:03:42]} 6. Be2 {[%clk 00:49:49]} {[%emt
00:00:15]} Nf6 {[%clk 00:57:35]} {[%emt 00:01:00]} 7. O-O {[%clk 00:49:58]}
{[%emt 00:00:21]} Bd6 {[%clk 00:56:48]} {[%emt 00:01:16]} 8. b3 {[%clk
00:50:14]} {[%emt 00:00:16]} cxb3 {[%clk 00:51:32]} {[%emt 00:05:46]} 9. axb3
{[%clk 00:50:40]} {[%emt 00:00:05]} O-O {[%clk 00:51:43]} {[%emt 00:00:18]} 10.
c4 {[%clk 00:49:17]} {[%emt 00:01:53]} h6 {[%clk 00:49:27]} {[%emt 00:02:46]}
11. Nc3 {[%clk 00:38:29]} {[%emt 00:11:17]} dxc4 {[%clk 00:35:40]} {[%emt
00:14:17]} 12. bxc4 {[%clk 00:38:43]} {[%emt 00:00:16]} Nc6 {[%clk 00:35:42]}
{[%emt 00:00:28]} 13. Nb5 {[%clk 00:24:29]} {[%emt 00:14:44]} Bb8 {[%clk
00:34:23]} {[%emt 00:01:48]} 14. Bb2 {[%clk 00:16:30]} {[%emt 00:08:29]} Re8
{[%clk 00:25:59]} {[%emt 00:08:54]} 15. d5 {[%clk 00:15:10]} {[%emt 00:01:50]}
Nb4 {[%clk 00:23:39]} {[%emt 00:02:50]} 16. Re1 {[%clk 00:13:45]} {[%emt
00:01:54]} Bf5 {[%clk 00:22:38]} {[%emt 00:01:32]} 17. Nbd4 {[%clk 00:10:37]}
{[%emt 00:03:38]} Bg6 {[%clk 00:17:07]} {[%emt 00:06:01]} 18. Qb3 {[%clk
00:06:11]} {[%emt 00:04:56]} a5 {[%clk 00:17:08]} {[%emt 00:00:30]} 19. Bf1
{[%clk 00:06:19]} {[%emt 00:00:21]} Ne4 {[%clk 00:13:59]} {[%emt 00:03:40]} 20.
g3 {[%clk 00:05:14]} {[%emt 00:01:35]} Bd6 {[%clk 00:12:28]} {[%emt 00:02:01]}
21. Nh4 {[%clk 00:04:54]} {[%emt 00:00:50]} Bh7 {[%clk 00:06:35]} {[%emt
00:06:23]} 22. Qf3 {[%clk 00:05:07]} {[%emt 00:00:17]} Nd2 {[%clk 00:05:30]}
{[%emt 00:01:35]} 23. Rxe8+ {[%clk 00:03:20]} {[%emt 00:02:17]} Qxe8 {[%clk
00:05:56]} {[%emt 00:00:03]} 24. Qg4 {[%clk 00:03:44]} {[%emt 00:00:06]} Qe4
{[%clk 00:04:21]} {[%emt 00:02:05]} 25. Qxe4 {[%clk 00:01:42]} {[%emt
00:02:32]} Bxe4 {[%clk 00:04:31]} {[%emt 00:00:21]} 26. Nb5 {[%clk 00:00:34]}
{[%emt 00:01:38]} Bc5 {[%clk 00:03:32]} {[%emt 00:01:29]} 27. Be2 {[%clk
00:00:43]} {[%emt 00:00:21]} g5 {[%clk 00:03:04]} {[%emt 00:00:58]} 28. Ng2
{[%clk 00:00:52]} {[%emt 00:00:20]} Bxg2 {[%clk 00:02:12]} {[%emt 00:01:22]} 29.
Kxg2 {[%clk 00:01:14]} {[%emt 00:00:09]} Ne4 {[%clk 00:02:31]} {[%emt
00:00:11]} 30. f4 {[%clk 00:30:51]} {[%emt 00:00:52]} Nc2 {[%clk 00:32:13]}
{[%emt 00:00:49]} 31. Rc1 {[%clk 00:21:42]} {[%emt 00:09:38]} Ne3+ {[%clk
00:31:50]} {[%emt 00:00:53]} 1/2-1/2

[Event "Paul Keres Memorial Festival 2022"]
[Site "Pärnu, Estonia Resort Hotel & Spa"]
[Date "2022.07.20"]
[Round "5.5"]
[White "Protassov, Vlad"]
[Black "Medar, Marti"]
[Result "1-0"]
[TimeControl "60 min for 30 moves + 30 min until game end, from first move every move 30 sec time increment"]
[WhiteFideId "4507010"]
[BlackFideId "4501870"]
[WhiteElo "1824"]
[BlackElo "2066"]

1. d4 {[%clk 01:00:55]} {[%emt 03:45:25]} d6 {[%clk 01:00:46]} 2. Nf3 {[%clk
01:01:17]} Nd7 {[%clk 01:00:43]} 3. c4 {[%clk 01:01:31]} e5 {[%clk 01:00:34]}
{[%emt 00:00:22]} 4. Nc3 {[%clk 01:01:11]} {[%emt 00:00:51]} Ngf6 {[%clk
01:00:28]} {[%emt 00:00:36]} 5. g3 {[%clk 01:00:30]} {[%emt 00:01:11]} c6
{[%clk 00:58:48]} {[%emt 00:02:10]} 6. e4 {[%clk 00:58:50]} {[%emt 00:02:10]}
Qc7 {[%clk 00:57:21]} {[%emt 00:01:56]} 7. Bg2 {[%clk 00:59:04]} {[%emt
00:00:17]} Be7 {[%clk 00:55:08]} {[%emt 00:02:43]} 8. O-O {[%clk 00:59:08]}
{[%emt 00:00:27]} h6 {[%clk 00:53:55]} {[%emt 00:01:42]} 9. Re1 {[%clk
00:58:00]} {[%emt 00:01:38]} g5 {[%clk 00:49:43]} {[%emt 00:04:43]} 10. a3
{[%clk 00:51:18]} {[%emt 00:07:13]} a5 {[%clk 00:49:06]} {[%emt 00:01:06]} 11.
Rb1 {[%clk 00:50:41]} {[%emt 00:01:07]} Nf8 {[%clk 00:48:35]} {[%emt 00:01:01]}
12. b4 {[%clk 00:47:53]} {[%emt 00:03:19]} Ng6 {[%clk 00:48:26]} {[%emt
00:00:38]} 13. Be3 {[%clk 00:30:51]} {[%emt 00:17:32]} g4 {[%clk 00:40:16]}
{[%emt 00:08:40]} 14. Nd2 {[%clk 00:31:09]} {[%emt 00:00:11]} h5 {[%clk
00:37:03]} {[%emt 00:03:44]} 15. d5 {[%clk 00:24:25]} {[%emt 00:07:15]} h4
{[%clk 00:25:31]} {[%emt 00:12:01]} 16. Na4 {[%clk 00:13:21]} {[%emt 00:11:34]}
axb4 {[%clk 00:16:36]} {[%emt 00:09:25]} 17. axb4 {[%clk 00:13:05]} {[%emt
00:00:46]} Nh7 {[%clk 00:16:10]} {[%emt 00:00:56]} 18. c5 {[%clk 00:07:09]}
{[%emt 00:06:26]} cxd5 {[%clk 00:06:51]} {[%emt 00:09:49]} 19. Nb6 {[%clk
00:07:15]} {[%emt 00:00:24]} d4 {[%clk 00:04:11]} {[%emt 00:03:10]} 20. Nxa8
{[%emt 00:00:26]} Qb8 {[%clk 00:04:03]} {[%emt 00:00:37]} 21. cxd6 {[%clk
00:03:05]} {[%emt 00:04:45]} dxe3 {[%clk 00:01:33]} {[%emt 00:03:00]} 22. Nc7+
{[%clk 00:01:15]} {[%emt 00:02:20]} Kf8 {[%clk 00:00:59]} {[%emt 00:01:03]} 23.
dxe7+ {[%clk 00:00:52]} {[%emt 00:00:54]} Nxe7 {[%clk 00:01:28]} {[%emt
00:00:02]} 24. Rc1 {[%clk 00:00:36]} {[%emt 00:00:46]} exd2 {[%clk 00:00:46]}
{[%emt 00:01:13]} 25. Qxd2 {[%clk 00:01:01]} {[%emt 00:00:05]} Kg7 {[%clk
00:00:48]} {[%emt 00:00:27]} 26. Qd6 {[%clk 00:01:16]} {[%emt 00:00:15]} Nc6
{[%clk 00:00:38]} {[%emt 00:00:40]} 27. Rxc6 {[%clk 00:01:29]} {[%emt
00:00:17]} Qa7 {[%clk 00:00:40]} {[%emt 00:00:29]} 28. Qh6+ {[%clk 00:01:17]}
{[%emt 00:00:40]} Kg8 {[%clk 00:01:08]} {[%emt 00:00:03]} 29. Ne8 {[%clk
00:01:20]} {[%emt 00:00:26]} 1-0

[Event "Paul Keres Memorial Festival 2022"]
[Site "Pärnu, Estonia Resort Hotel & Spa"]
[Date "2022.07.20"]
[Round "5.6"]
[White "Rezniks, Roberts"]
[Black "Raag, Ardi"]
[Result "0-1"]
[TimeControl "60 min for 30 moves + 30 min until game end, from first move every move 30 sec time increment"]
[WhiteFideId "11624884"]
[BlackFideId "4509269"]
[WhiteElo "1648"]
[BlackElo "1971"]

1. e4 {[%clk 00:54:56]} {[%emt 00:04:28]} e6 {[%clk 01:00:55]} {[%emt
00:00:05]} 2. d4 {[%clk 00:55:03]} {[%emt 00:00:23]} d5 {[%clk 01:01:22]}
{[%emt 00:00:04]} 3. Nc3 {[%clk 00:55:26]} {[%emt 00:00:07]} Nf6 {[%clk
01:01:47]} {[%emt 00:00:05]} 4. e5 {[%clk 00:55:53]} {[%emt 00:00:03]} Nfd7
{[%clk 01:02:13]} {[%emt 00:00:03]} 5. f4 {[%clk 00:56:20]} {[%emt 00:00:04]}
c5 {[%clk 01:02:37]} {[%emt 00:00:06]} 6. Nf3 {[%clk 00:56:47]} {[%emt
00:00:03]} Nc6 {[%clk 01:02:51]} {[%emt 00:00:16]} 7. Be2 {[%clk 00:56:42]}
{[%emt 00:00:34]} cxd4 {[%clk 01:02:52]} {[%emt 00:00:30]} 8. Nxd4 {[%clk
00:57:06]} {[%emt 00:00:05]} Ndxe5 {[%clk 01:02:47]} {[%emt 00:00:36]} 9. Nxe6
{[%clk 00:52:19]} {[%emt 00:05:17]} fxe6 {[%clk 00:59:43]} {[%emt 00:03:34]} 10.
fxe5 {[%clk 00:52:42]} {[%emt 00:00:07]} Bc5 {[%clk 00:56:56]} {[%emt
00:03:17]} 11. Bf4 {[%clk 00:50:10]} {[%emt 00:03:02]} O-O {[%clk 00:55:33]}
{[%emt 00:01:54]} 12. Qd2 {[%clk 00:50:36]} {[%emt 00:00:04]} Qb6 {[%clk
00:54:30]} {[%emt 00:01:33]} 13. Na4 {[%clk 00:44:30]} {[%emt 00:06:36]} Bf2+
{[%clk 00:54:38]} {[%emt 00:00:22]} 14. Kd1 {[%clk 00:44:58]} {[%emt 00:00:01]}
Qd4 {[%clk 00:54:19]} {[%emt 00:00:50]} 15. Qxd4 {[%clk 00:44:39]} {[%emt
00:00:49]} Bxd4 {[%clk 00:54:31]} {[%emt 00:00:18]} 16. g3 {[%clk 00:42:29]}
{[%emt 00:02:39]} Bxe5 {[%clk 00:53:05]} {[%emt 00:01:56]} 17. Bxe5 {[%clk
00:42:50]} {[%emt 00:00:09]} Nxe5 {[%clk 00:53:32]} {[%emt 00:00:04]} 18. Re1
{[%clk 00:42:57]} {[%emt 00:00:23]} b6 {[%clk 00:51:41]} {[%emt 00:02:20]} 19.
Nc3 {[%clk 00:39:53]} {[%emt 00:03:34]} Nf3 {[%clk 00:48:21]} {[%emt 00:03:50]}
20. Bxf3 {[%clk 00:40:02]} {[%emt 00:00:21]} Rxf3 {[%clk 00:48:46]} {[%emt
00:00:06]} 21. Nb5 {[%clk 00:39:27]} {[%emt 00:01:05]} Bd7 {[%clk 00:47:50]}
{[%emt 00:01:26]} 22. Nd4 {[%clk 00:29:57]} {[%emt 00:10:00]} Rf6 {[%clk
00:47:55]} {[%emt 00:00:24]} 23. h4 {[%clk 00:28:02]} {[%emt 00:02:24]} Re8
{[%clk 00:47:18]} {[%emt 00:01:07]} 24. Kd2 {[%clk 00:25:55]} {[%emt 00:02:38]}
e5 {[%clk 00:44:22]} {[%emt 00:03:26]} 25. Ne2 {[%clk 00:26:24]} {[%emt
00:00:01]} Rf2 {[%clk 00:43:50]} {[%emt 00:01:02]} 26. Rf1 {[%clk 00:25:20]}
{[%emt 00:01:33]} Ref8 {[%clk 00:42:42]} {[%emt 00:01:39]} 27. Rxf2 {[%clk
00:25:44]} {[%emt 00:00:06]} Rxf2 {[%clk 00:43:07]} {[%emt 00:00:04]} 28. Ke3
{[%clk 00:23:51]} {[%emt 00:02:21]} Rh2 {[%clk 00:43:30]} {[%emt 00:00:10]} 29.
c3 {[%clk 00:10:35]} {[%emt 00:13:47]} Bg4 {[%clk 00:43:40]} {[%emt 00:00:20]}
30. Re1 {[%clk 00:39:34]} {[%emt 00:01:30]} Rxe2+ {[%clk 01:12:20]} {[%emt
00:01:51]} 31. Rxe2 {[%clk 00:40:02]} {[%emt 00:00:02]} Bxe2 {[%clk 01:12:43]}
{[%emt 00:00:07]} 32. Kxe2 {[%clk 00:40:26]} {[%emt 00:00:06]} h5 {[%clk
01:13:02]} {[%emt 00:00:11]} 0-1